fUSD/lending_fUSD_20260401
["ID","MTS","AMOUNT","RATE_DAILY","PERIOD"]
[419191924,1775014246882,-330.45036883,0.00027397,2]
[419191926,1775014246892,-152.0,0.00027406,3]
[419191928,1775014246901,-1115.0,0.00027594,5]
[419191930,1775014246911,-174.7,0.00027662,2]
[419191931,1775014246920,-810.0,0.000278,5]
[419191932,1775014246929,-1224.0,0.000278,5]
[419191933,1775014246938,-504.0,0.00027827,14]
[419191934,1775014246948,-2000.0,0.000279,2]
[419191935,1775014246959,-805.6,0.00028059,2]
[419191936,1775014246969,-150.0,0.00028544,2]
[419191937,1775014246979,-600.29,0.00028564,2]
[419191938,1775014246988,-1214.42,0.00028564,2]
[419191939,1775014247000,-500.0,0.00028767,120]
[419191940,1775014247009,-500.0,0.00028767,120]
[419191941,1775014247020,-500.0,0.00028767,120]
[419191942,1775014247030,-500.0,0.00028767,120]
[419191943,1775014247039,-500.0,0.00028767,120]
[419191944,1775014247049,-500.0,0.00028767,120]
[419191945,1775014247059,-204.78266092,0.00028767,120]
[419191946,1775014247069,-152.0,0.0002893,4]
[419191947,1775014247079,-1115.0,0.00028974,5]
[419191948,1775014247088,-1444.0,0.00029041,120]
[419191949,1775014247098,-1263.0,0.00029137,2]
[419191950,1775014247108,-925.0,0.00029137,2]
[419191951,1775014247117,-1216.0,0.00029137,2]
[419191952,1775014247127,-621.0,0.00029137,2]
[419191953,1775014247138,-1346.0,0.00029137,2]
[419191954,1775014247147,-6364.89058816,0.00029157,2]
[419191955,1775014247157,-504.0,0.00029164,15]
[419191956,1775014247167,-500.0,0.00029321,30]
[419191957,1775014247177,-582.27,0.00029421,2]
[419191958,1775014247186,-1177.98,0.00029421,2]
[419191959,1775014247196,-199.62462886,0.00029493,120]
[419191960,1775014247206,-676.96897858,0.00029493,120]
[419191961,1775014247216,-805.6,0.0002972,2]
[419191962,1775014247225,-825.0,0.00029753,60]
[419191963,1775014247236,-200.0,0.000299,10]
[419191964,1775014247245,-2005.0,0.000299,2]
[419191965,1775014247255,-150.0,0.00029971,2]
[419191966,1775014247265,-363.51560483,0.0003,30]
[419191967,1775014247275,-1014.36,0.0003,30]
[419191968,1775014247284,-270.8,0.00030274,60]
[419191969,1775014247294,-1141.55,0.00030278,2]
[419191970,1775014247304,-1014.36,0.00030288,30]
[419191971,1775014247314,-1180.36391778,0.00030423,5]
[419191972,1775014247324,-152.0,0.00030454,5]
[419191973,1775014247334,-504.0,0.00030502,17]
[419191974,1775014247344,-1014.36,0.00030577,30]
[419191975,1775014247354,-234.91244304,0.00030685,2]
[419191976,1775014247363,-216.349999,0.000307,11]
[419191977,1775014247457,-20000.0,0.000308,120]
[419191978,1775014247466,-509.656853,0.00030811,120]
[419191979,1775014247476,-1014.36,0.00030865,30]
[419191980,1775014247487,-1188.51483974,0.0003087,2]
[419191981,1775014247497,-762.87386502,0.0003087,2]
[419191982,1775014247506,-1014.36,0.00031154,30]
[419191983,1775014247516,-334.32,0.00031232,120]
[419191984,1775014247525,-1000.0,0.00031263,2]
[419191985,1775014247535,-805.6,0.0003138,2]
[419191986,1775014247545,-162.0,0.0003139,3]
[419191987,1775014247555,-1571.0,0.00031395,3]
[419191988,1775014247567,-2809.0,0.00031399,3]
[419191989,1775014247577,-2809.0,0.000314,3]
[419191990,1775014247587,-2809.0,0.000314,3]
[419191991,1775014247596,-1105.12,0.0003142,2]
[419191992,1775014247605,-1014.36,0.00031442,30]
[419191993,1775014247614,-150.0,0.0003147,2]
[419191994,1775014247624,-2000.0,0.000316,2]
[419191995,1775014247635,-200.0,0.000317,12]
[419191996,1775014247644,-580.0,0.00031719,3]
[419191997,1775014247654,-1014.36,0.00031731,30]
[419191998,1775014247664,-334.32,0.0003178,120]
[419191999,1775014247673,-160.0,0.0003183,3]
[419192000,1775014247682,-504.0,0.0003184,18]
[419192001,1775014247691,-3082.2118754,0.00031923,2]
[419192002,1775014247701,-152.0,0.00031979,6]
[419192003,1775014247711,-251.97423471,0.00032,120]
[419192004,1775014247720,-1769.38656072,0.00032,120]
[419192005,1775014247729,-184.74146044,0.00032,120]
[419192006,1775014247738,-385.19719108,0.00032,120]
[419192007,1775014247748,-167.63309834,0.00032,120]
[419192008,1775014247757,-333.19574259,0.00032,120]
[419192009,1775014247766,-282.70447581,0.00032,120]
[419192010,1775014247775,-223.9430648,0.00032,120]
[419192011,1775014247785,-179.7765907,0.00032,120]
[419192012,1775014247794,-1014.36,0.00032019,120]
[419192013,1775014247803,-162.0,0.00032035,3]
[419192014,1775014247813,-2809.0,0.0003204,3]
[419192015,1775014247822,-1263.0,0.00032137,2]
[419192016,1775014247831,-925.0,0.00032137,2]
[419192017,1775014247840,-1216.0,0.00032137,2]
[419192018,1775014247850,-621.0,0.00032137,2]
[419192019,1775014247859,-1346.0,0.00032137,2]
[419192020,1775014247869,-825.0,0.00032191,60]
[419192021,1775014247879,-363.51560483,0.00032222,30]
[419192022,1775014247888,-150.0,0.000323,30]
[419192023,1775014247897,-367.26,0.000323,30]
[419192024,1775014247907,-434.76,0.000323,30]
[419192025,1775014247916,-1014.36,0.00032308,120]
[419192026,1775014247926,-1000.0,0.00032322,120]
[419192027,1775014247935,-1000.0,0.00032322,120]
[419192028,1775014247944,-1000.0,0.00032322,120]
[419192029,1775014247953,-1000.0,0.00032322,120]
[419192030,1775014247963,-1000.0,0.00032322,120]
[419192031,1775014247972,-1000.0,0.00032322,120]
[419192032,1775014247981,-1000.0,0.00032322,120]
[419192033,1775014247991,-1000.0,0.00032322,120]
[419192034,1775014248000,-1000.0,0.00032322,120]
[419192035,1775014248011,-1000.0,0.00032322,120]
[419192036,1775014248021,-1000.0,0.00032322,120]
[419192037,1775014248031,-1000.0,0.00032322,120]
[419192038,1775014248041,-1000.0,0.00032322,120]
[419192039,1775014248051,-1000.0,0.00032322,120]
[419192040,1775014248060,-1000.0,0.00032322,120]
[419192041,1775014248070,-1000.0,0.00032322,120]
[419192042,1775014248079,-334.32,0.00032328,120]
[419192043,1775014248089,-393.70246722,0.00032329,7]
[419192044,1775014248098,-1000.0,0.00032329,120]
[419192045,1775014248108,-1000.0,0.00032332,120]
[419192046,1775014248116,-1000.0,0.00032352,120]
[419192047,1775014248126,-2816.0,0.00032358,11]
[419192048,1775014248135,-1000.0,0.000324,120]
[419192049,1775014248144,-1000.0,0.00032402,120]
[419192050,1775014248153,-500.0,0.00032404,60]
[419192051,1775014248162,-150.0,0.00032404,60]
[419192052,1775014248171,-500.0,0.00032404,60]
[419192053,1775014248180,-150.0,0.00032404,60]
[419192054,1775014248190,-500.0,0.00032404,60]
[419192055,1775014248201,-500.0,0.00032404,60]
[419192056,1775014248211,-500.0,0.00032404,60]
[419192057,1775014248221,-150.0,0.00032404,60]
[419192058,1775014248230,-500.0,0.00032404,60]
[419192059,1775014248239,-500.0,0.00032404,60]
[419192060,1775014248248,-178.86340843,0.00032404,60]
[419192061,1775014248258,-192.86328768,0.00032404,60]
[419192062,1775014248268,-500.0,0.00032404,60]
[419192063,1775014248277,-500.0,0.00032404,60]
[419192064,1775014248286,-500.0,0.00032404,60]
[419192065,1775014248296,-500.0,0.00032404,60]
[419192066,1775014248305,-500.0,0.00032404,60]
[419192067,1775014248314,-500.0,0.00032404,60]
[419192068,1775014248324,-500.0,0.00032404,60]
[419192069,1775014248334,-500.0,0.00032404,60]
[419192070,1775014248344,-500.0,0.00032404,60]
[419192071,1775014248354,-500.0,0.00032404,60]
[419192072,1775014248364,-156.13980161,0.00032404,60]
[419192073,1775014248373,-500.0,0.00032404,60]
[419192074,1775014248383,-500.0,0.00032404,60]
[419192075,1775014248393,-500.0,0.00032404,60]
[419192076,1775014248403,-500.0,0.00032404,60]
[419192077,1775014248413,-500.0,0.00032404,60]
[419192078,1775014248423,-500.0,0.00032404,60]
[419192079,1775014248432,-500.0,0.00032404,60]
[419192080,1775014248441,-508.88121175,0.00032404,60]
[419192081,1775014248450,-500.0,0.00032404,60]
[419192082,1775014248459,-500.0,0.00032404,60]
[419192083,1775014248469,-500.0,0.00032404,60]
[419192084,1775014248478,-500.0,0.00032404,60]
[419192085,1775014248487,-500.0,0.00032404,60]
[419192086,1775014248497,-500.0,0.00032404,60]
[419192087,1775014248506,-500.0,0.00032404,60]
[419192088,1775014248515,-500.0,0.00032404,60]
[419192089,1775014248524,-500.0,0.00032404,60]
[419192090,1775014248534,-500.0,0.00032404,60]
[419192091,1775014248543,-500.0,0.00032404,60]
[419192092,1775014248552,-500.0,0.00032404,60]
[419192093,1775014248562,-500.0,0.00032404,60]
[419192094,1775014248571,-537.28319898,0.00032404,60]
[419192095,1775014248580,-500.0,0.00032404,60]
[419192096,1775014248589,-500.0,0.00032404,60]
[419192097,1775014248598,-219.07152529,0.00032417,2]
[419192098,1775014248607,-1000.0,0.00032423,120]
[419192099,1775014248616,-1000.0,0.00032423,120]
[419192100,1775014248626,-367.26,0.00032479,30]
[419192101,1775014248636,-434.76,0.00032479,30]
[419192102,1775014248645,-1000.0,0.00032528,90]
[419192103,1775014248655,-365.452,0.00032559,120]
[419192104,1775014248664,-1014.36,0.00032596,120]
[419192105,1775014248674,-367.26,0.00032658,30]
[419192106,1775014248683,-434.76,0.00032658,30]
[419192107,1775014248693,-2809.0,0.0003268,11]
[419192108,1775014248703,-200.0,0.000327,12]
[419192109,1775014248712,-299.04270038,0.000327,2]
[419192110,1775014248722,-299.04270032,0.000327,2]
[419192111,1775014248731,-299.04270032,0.000327,2]
[419192112,1775014248740,-299.04270032,0.000327,2]
[419192113,1775014248750,-299.04270032,0.000327,2]
[419192114,1775014248759,-299.04270032,0.000327,2]
[419192115,1775014248769,-299.04270032,0.000327,2]
[419192116,1775014248778,-299.04270032,0.000327,2]
[419192117,1775014248787,-299.04270032,0.000327,2]
[419192118,1775014248796,-299.04270032,0.000327,2]
[419192119,1775014248805,-299.04270032,0.000327,2]
[419192120,1775014248814,-299.04270032,0.000327,2]
[419192121,1775014248824,-299.04270032,0.000327,2]
[419192122,1775014248833,-299.04270032,0.000327,2]
[419192123,1775014248843,-299.04270032,0.000327,2]
[419192124,1775014248851,-299.04270032,0.000327,2]
[419192125,1775014248860,-299.04270032,0.000327,2]
[419192126,1775014248870,-299.04270032,0.000327,2]
[419192127,1775014248879,-299.04270032,0.000327,2]
[419192128,1775014248889,-299.04270032,0.000327,2]
[419192129,1775014248898,-800.0,0.00032782,21]
[419192130,1775014248907,-170.0,0.00032783,2]
[419192131,1775014248917,-425.0,0.00032819,2]
[419192132,1775014248926,-367.26,0.00032837,30]
[419192133,1775014248935,-434.76,0.00032837,30]
[419192134,1775014248945,-214.20886618,0.00032842,2]
[419192135,1775014248954,-1068.69,0.00032849,2]
[419192136,1775014248963,-5800.0,0.00032852,2]
[419192137,1775014248973,-5800.0,0.0003286,2]
[419192138,1775014248982,-425.0,0.0003286,2]
[419192139,1775014248992,-5800.0,0.00032869,2]
[419192140,1775014249002,-1000.0,0.0003287,2]
[419192141,1775014249012,-500.0,0.0003287,2]
[419192142,1775014249022,-334.32,0.00032876,120]
[419192143,1775014249031,-178.24174739,0.00032876,2]
[419192144,1775014249041,-320.83514529,0.00032876,2]
[419192145,1775014249052,-317.10275671,0.00032876,2]
[419192146,1775014249062,-5800.0,0.00032877,2]
[419192147,1775014249072,-1014.36,0.00032885,120]
[419192148,1775014249081,-27980.39,0.000329,2]
[419192149,1775014249093,-8589.43,0.000329,30]
[419192150,1775014249103,-10141.86,0.000329,30]
[419192151,1775014249114,-7918.67,0.000329,30]
[419192152,1775014249124,-229.25355257,0.00032905,2]
[419192153,1775014249133,-170.0,0.00032957,2]
[419192154,1775014249143,-1000.0,0.0003297,2]
[419192155,1775014249152,-1000.0,0.0003297,2]
[419192156,1775014249162,-1000.0,0.0003297,2]
[419192157,1775014249172,-1000.0,0.0003297,2]
[419192158,1775014249181,-500.0,0.0003297,2]
[419192159,1775014249191,-500.0,0.0003297,2]
[419192160,1775014249201,-500.0,0.0003297,2]
[419192161,1775014249210,-500.0,0.0003297,2]
[419192162,1775014249219,-1000.0,0.00032975,2]
[419192163,1775014249229,-557.5788265,0.00032985,30]
[419192164,1775014249239,-500.0,0.00032985,30]
[419192165,1775014249248,-500.0,0.00032985,30]
[419192166,1775014249258,-579.88197956,0.00032985,30]
[419192167,1775014249267,-200.0,0.00032985,30]
[419192168,1775014249276,-7681.20591386,0.00032985,30]
[419192169,1775014249286,-1148.61238259,0.00032985,30]
[419192170,1775014249295,-151.0,0.00032985,30]
[419192171,1775014249305,-500.0,0.00032985,30]
[419192172,1775014249314,-168.3888056,0.00032985,30]
[419192173,1775014249324,-168.3888056,0.00032985,30]
[419192174,1775014249333,-500.0,0.00032985,30]
[419192175,1775014249342,-218.40321003,0.00032985,30]
[419192176,1775014249352,-200.0,0.00032985,30]
[419192177,1775014249361,-151.0,0.00032985,30]
[419192178,1775014249371,-160.0,0.00032985,30]
[419192179,1775014249380,-168.3888056,0.00032985,30]
[419192180,1775014249389,-500.0,0.00032985,30]
[419192181,1775014249398,-557.5788265,0.00032985,30]
[419192182,1775014249407,-168.3888056,0.00032985,30]
[419192183,1775014249416,-500.0,0.00032985,30]
[419192184,1775014249425,-151.0,0.00032985,30]
[419192185,1775014249434,-151.0,0.00032985,30]
[419192186,1775014249443,-1221.88697738,0.00032985,30]
[419192187,1775014249453,-250.0,0.00032985,30]
[419192188,1775014249462,-537.6845,0.00032998,30]
[419192189,1775014249471,-500.0,0.00032998,30]
[419192190,1775014249481,-500.0,0.00032998,30]
[419192191,1775014249490,-559.19188,0.00032998,30]
[419192192,1775014249499,-200.0,0.00032998,30]
[419192193,1775014249508,-7407.141672,0.00032998,30]
[419192194,1775014249517,-1107.63007,0.00032998,30]
[419192195,1775014249527,-151.0,0.00032998,30]
[419192196,1775014249536,-500.0,0.00032998,30]
[419192197,1775014249545,-162.380719,0.00032998,30]
[419192198,1775014249555,-162.380719,0.00032998,30]
[419192199,1775014249564,-500.0,0.00032998,30]
[419192200,1775014249573,-151.0,0.00032998,30]
[419192201,1775014249582,-200.0,0.00032998,30]
[419192202,1775014249591,-151.0,0.00032998,30]
[419192203,1775014249600,-160.0,0.00032998,30]
[419192204,1775014249609,-162.380719,0.00032998,30]
[419192205,1775014249618,-500.0,0.00032998,30]
[419192206,1775014249628,-537.6845,0.00032998,30]
[419192207,1775014249637,-162.380719,0.00032998,30]
[419192208,1775014249646,-500.0,0.00032998,30]
[419192209,1775014249657,-151.0,0.00032998,30]
[419192210,1775014249666,-151.0,0.00032998,30]
[419192211,1775014249675,-269.917619,0.00032998,30]
[419192212,1775014249684,-250.0,0.00032998,30]
[419192213,1775014249693,-150.0,0.00032999,2]
[419192214,1775014249703,-14617.7759686,0.00032999,2]
[419192215,1775014249712,-150.0,0.00032999,2]
[419192216,1775014249722,-88387.69970662,0.00032999,2]
[419192217,1775014249731,-150.0,0.00032999,2]
[419192218,1775014249740,-1540.1814632,0.00032999,2]
[419192219,1775014249750,-251.97423471,0.00033,120]
[419192220,1775014249759,-1769.38656072,0.00033,120]
[419192221,1775014249768,-184.74146044,0.00033,120]
[419192222,1775014249778,-385.19719108,0.00033,120]
[419192223,1775014249787,-167.63309834,0.00033,120]
[419192224,1775014249797,-333.19574259,0.00033,120]
[419192225,1775014249806,-282.70447581,0.00033,120]
[419192226,1775014249815,-150.0,0.00033,8]
[419192227,1775014249825,-200.0,0.00033,10]
[419192228,1775014249834,-200.40265,0.00033,7]
[419192229,1775014249844,-1000.0,0.00033,14]
[419192230,1775014249854,-288.05924458,0.00033,14]
[419192231,1775014249863,-367.26,0.00033016,120]
[419192232,1775014249872,-6364.89058816,0.00033029,2]
[419192233,1775014249881,-1000.0,0.0003303,2]
[419192234,1775014249890,-805.6,0.0003304,2]
[419192235,1775014249899,-150.0,0.00033043,2]
[419192236,1775014249908,-1300.0,0.00033056,21]
[419192237,1775014249917,-300.0,0.000331,10]
[419192238,1775014249926,-1014.36,0.00033173,120]
[419192239,1775014249936,-504.0,0.00033178,19]
[419192240,1775014249945,-367.26,0.00033195,120]
[419192241,1775014249954,-27980.39,0.000332,2]
[419192242,1775014249964,-8589.43,0.000332,30]
[419192243,1775014249972,-10141.86,0.000332,30]
[419192244,1775014249981,-7918.67,0.000332,30]
[419192245,1775014249990,-4309.75289906,0.00033229,2]
[419192246,1775014249999,-6564.79442548,0.00033229,2]
[419192247,1775014250008,-1000.0,0.00033341,2]
[419192248,1775014250017,-1000.0,0.00033363,2]
[419192249,1775014250027,-367.26,0.00033374,120]
[419192250,1775014250037,-334.32,0.00033424,120]
[419192251,1775014250048,-677.88061331,0.00033428,2]
[419192252,1775014250059,-1000.0,0.00033453,2]
[419192253,1775014250068,-1014.36,0.00033462,120]
[419192254,1775014250078,-152.0,0.00033503,7]
[419192255,1775014250088,-151.0,0.00033525,14]
[419192256,1775014250097,-151.0,0.00033525,14]
[419192257,1775014250107,-666.0,0.00033527,10]
[419192258,1775014250116,-694.43072499,0.00033527,10]
[419192259,1775014250126,-500.0,0.00033527,30]
[419192260,1775014250135,-602.94613396,0.00033527,30]
[419192261,1775014250144,-791998.7138502,0.00033528,2]
[419192262,1775014250154,-208012.1919925,0.00033528,2]
[419192263,1775014250163,-812784.670602,0.00033528,2]
[419192264,1775014250172,-8149.6099933,0.00033528,2]
[419192265,1775014250181,-151.0,0.00033528,7]
[419192266,1775014250191,-171.108772,0.00033528,7]
[419192267,1775014250200,-151.0,0.00033528,7]
[419192268,1775014250209,-171.108772,0.00033528,7]
[419192269,1775014250218,-178.312831,0.00033528,7]
[419192270,1775014250228,-151.0,0.00033528,7]
[419192271,1775014250237,-171.108772,0.00033528,7]
[419192272,1775014250246,-178.312831,0.00033528,7]
[419192273,1775014250256,-151.0,0.00033528,7]
[419192274,1775014250265,-171.108772,0.00033528,7]
[419192275,1775014250275,-178.312831,0.00033528,7]
[419192276,1775014250285,-178.312831,0.00033528,7]
[419192277,1775014250294,-421.938934,0.00033528,7]
[419192278,1775014250303,-421.938934,0.00033528,7]
[419192279,1775014250312,-421.938934,0.00033528,7]
[419192280,1775014250322,-421.938934,0.00033528,7]
[419192281,1775014250331,-234.891227,0.00033528,7]
[419192282,1775014250340,-234.891227,0.00033528,7]
[419192283,1775014250349,-234.891227,0.00033528,7]
[419192284,1775014250359,-234.891227,0.00033528,7]
[419192285,1775014250368,-190.117916,0.00033528,7]
[419192286,1775014250377,-190.117916,0.00033528,7]
[419192287,1775014250387,-190.117916,0.00033528,7]
[419192288,1775014250395,-190.117916,0.00033528,7]
[419192289,1775014250405,-249.645465,0.00033528,7]
[419192290,1775014250414,-418.465845,0.00033528,7]
[419192291,1775014250423,-483.089048,0.00033528,7]
[419192292,1775014250432,-249.645465,0.00033528,7]
[419192293,1775014250441,-263.046408,0.00033528,7]
[419192294,1775014250451,-418.465845,0.00033528,7]
[419192295,1775014250460,-483.089048,0.00033528,7]
[419192296,1775014250470,-249.645465,0.00033528,7]
[419192297,1775014250479,-263.046408,0.00033528,7]
[419192298,1775014250489,-418.465845,0.00033528,7]
[419192299,1775014250498,-245.956086,0.00033528,7]
[419192300,1775014250508,-483.089048,0.00033528,7]
[419192301,1775014250517,-249.645465,0.00033528,7]
[419192302,1775014250527,-263.046408,0.00033528,7]
[419192303,1775014250537,-245.956086,0.00033528,7]
[419192304,1775014250546,-151.0,0.00033528,7]
[419192305,1775014250555,-418.465845,0.00033528,7]
[419192306,1775014250564,-483.089048,0.00033528,7]
[419192307,1775014250574,-263.046408,0.00033528,7]
[419192308,1775014250583,-182.688209,0.00033528,7]
[419192309,1775014250592,-151.0,0.00033528,7]
[419192310,1775014250602,-151.0,0.00033528,7]
[419192311,1775014250611,-245.956086,0.00033528,7]
[419192312,1775014250620,-151.0,0.00033528,7]
[419192313,1775014250630,-151.0,0.00033528,7]
[419192314,1775014250640,-245.956086,0.00033528,7]
[419192315,1775014250649,-172.663958,0.00033528,7]
[419192316,1775014250658,-597.497225,0.00033528,7]
[419192317,1775014250667,-151.0,0.00033528,7]
[419192318,1775014250677,-287.333912,0.00033528,7]
[419192319,1775014250686,-182.688209,0.00033528,7]
[419192320,1775014250695,-172.663958,0.00033528,7]
[419192321,1775014250705,-597.497225,0.00033528,7]
[419192322,1775014250714,-151.0,0.00033528,7]
[419192323,1775014250723,-151.0,0.00033528,7]
[419192324,1775014250733,-172.663958,0.00033528,7]
[419192325,1775014250743,-521.20969,0.00033528,7]
[419192326,1775014250752,-182.688209,0.00033528,7]
[419192327,1775014250762,-597.497225,0.00033528,7]
[419192328,1775014250771,-172.663958,0.00033528,7]
[419192329,1775014250780,-182.688209,0.00033528,7]
[419192330,1775014250789,-521.20969,0.00033528,7]
[419192331,1775014250799,-597.497225,0.00033528,7]
[419192332,1775014250808,-151.0,0.00033528,7]
[419192333,1775014250818,-865.724085,0.00033528,7]
[419192334,1775014250828,-521.20969,0.00033528,7]
[419192335,1775014250837,-152.910508,0.00033528,7]
[419192336,1775014250846,-151.0,0.00033528,7]
[419192337,1775014250855,-865.724085,0.00033528,7]
[419192338,1775014250864,-152.910508,0.00033528,7]
[419192339,1775014250873,-521.20969,0.00033528,7]
[419192340,1775014250883,-865.724085,0.00033528,7]
[419192341,1775014250892,-151.0,0.00033528,7]
[419192342,1775014250902,-152.910508,0.00033528,7]
[419192343,1775014250911,-865.724085,0.00033528,7]
[419192344,1775014250920,-152.910508,0.00033528,7]
[419192345,1775014250929,-151.0,0.00033528,7]
[419192346,1775014250939,-151.279828,0.00033528,7]
[419192347,1775014250948,-151.0,0.00033528,7]
[419192348,1775014250958,-151.279828,0.00033528,7]
[419192349,1775014250967,-160.486882,0.00033528,7]
[419192350,1775014250977,-151.279828,0.00033528,7]
[419192351,1775014250987,-151.279828,0.00033528,7]
[419192352,1775014250996,-151.0,0.00033528,7]
[419192353,1775014251006,-255.663514,0.00033528,7]
[419192354,1775014251015,-255.663514,0.00033528,7]
[419192355,1775014251025,-255.663514,0.00033528,7]
[419192356,1775014251035,-485.941108,0.00033528,7]
[419192357,1775014251045,-178.585789,0.00033528,7]
[419192358,1775014251055,-255.663514,0.00033528,7]
[419192359,1775014251064,-485.941108,0.00033528,7]
[419192360,1775014251074,-349.539048,0.00033528,7]
[419192361,1775014251084,-178.585789,0.00033528,7]
[419192362,1775014251094,-485.941108,0.00033528,7]
[419192363,1775014251103,-178.585789,0.00033528,7]
[419192364,1775014251113,-151.0,0.00033528,7]
[419192365,1775014251123,-485.941108,0.00033528,7]
[419192366,1775014251132,-151.0,0.00033528,7]
[419192367,1775014251141,-432.594449,0.00033528,7]
[419192368,1775014251152,-310.869876,0.00033528,7]
[419192369,1775014251161,-349.539048,0.00033528,7]
[419192370,1775014251171,-151.0,0.00033528,7]
[419192371,1775014251180,-432.594449,0.00033528,7]
[419192372,1775014251190,-310.869876,0.00033528,7]
[419192373,1775014251200,-349.539048,0.00033528,7]
[419192374,1775014251210,-151.0,0.00033528,7]
[419192375,1775014251219,-587.336107,0.00033528,7]
[419192376,1775014251229,-173.356592,0.00033528,7]
[419192377,1775014251239,-432.594449,0.00033528,7]
[419192378,1775014251248,-151.0,0.00033528,7]
[419192379,1775014251258,-310.869876,0.00033528,7]
[419192380,1775014251267,-349.539048,0.00033528,7]
[419192381,1775014251277,-151.0,0.00033528,7]
[419192382,1775014251286,-265.286525,0.00033528,7]
[419192383,1775014251296,-587.336107,0.00033528,7]
[419192384,1775014251305,-163.965869,0.00033528,7]
[419192385,1775014251315,-173.356592,0.00033528,7]
[419192386,1775014251324,-178.585789,0.00033528,7]
[419192387,1775014251337,-310.869876,0.00033528,7]
[419192388,1775014251347,-432.594449,0.00033528,7]
[419192389,1775014251356,-173.235551,0.00033528,7]
[419192390,1775014251365,-587.336107,0.00033528,7]
[419192391,1775014251375,-151.0,0.00033528,7]
[419192392,1775014251386,-163.965869,0.00033528,7]
[419192393,1775014251397,-173.356592,0.00033528,7]
[419192394,1775014251406,-587.336107,0.00033528,7]
[419192395,1775014251416,-173.235551,0.00033528,7]
[419192396,1775014251426,-151.0,0.00033528,7]
[419192397,1775014251437,-163.965869,0.00033528,7]
[419192398,1775014251447,-151.0,0.00033528,7]
[419192399,1775014251456,-173.356592,0.00033528,7]
[419192400,1775014251625,-173.235551,0.00033528,7]
[419192401,1775014251648,-163.965869,0.00033528,7]
[419192402,1775014251658,-173.235551,0.00033528,7]
[419192403,1775014251668,-151.0,0.00033528,7]
[419192404,1775014251677,-151.0,0.00033528,7]
[419192405,1775014251687,-151.0,0.00033528,7]
[419192406,1775014251696,-151.0,0.00033528,7]
[419192407,1775014251706,-583.094244,0.00033528,7]
[419192408,1775014251715,-283.391457,0.00033528,7]
[419192409,1775014251724,-583.094244,0.00033528,7]
[419192410,1775014251734,-283.391457,0.00033528,7]
[419192411,1775014251743,-583.094244,0.00033528,7]
[419192412,1775014251753,-283.391457,0.00033528,7]
[419192413,1775014251762,-583.094244,0.00033528,7]
[419192414,1775014251771,-283.391457,0.00033528,7]
[419192415,1775014251781,-151.0,0.00033528,7]
[419192416,1775014251790,-151.0,0.00033528,7]
[419192417,1775014251799,-151.0,0.00033528,7]
[419192418,1775014251808,-689.341716,0.00033528,7]
[419192419,1775014251818,-201.137594,0.00033528,7]
[419192420,1775014251827,-319.999827,0.00033528,7]
[419192421,1775014251836,-689.341716,0.00033528,7]
[419192422,1775014251846,-151.0,0.00033528,7]
[419192423,1775014251856,-201.137594,0.00033528,7]
[419192424,1775014251865,-319.999827,0.00033528,7]
[419192425,1775014251874,-201.137594,0.00033528,7]
[419192426,1775014251884,-689.341716,0.00033528,7]